lending/lending_fUSD_20240110
["ID","MTS","AMOUNT","RATE_DAILY","PERIOD"]
[311060789,1704891144989,-613.28,0.00032876,2]
[311060790,1704891144999,-540.87625917,0.00032876,2]
[311060791,1704891145008,-500.0,0.00032876,2]
[311060792,1704891145018,-606.62,0.00032876,2]
[311060793,1704891145028,-1296.75,0.00032876,2]
[311060794,1704891145038,-549.61,0.00032876,2]
[311060795,1704891145047,-539.9,0.00032876,2]
[311060796,1704891145057,-500.0,0.00032876,2]
[311060797,1704891145067,-500.0,0.00032876,2]
[311060798,1704891145077,-554.24,0.00032876,2]
[311060799,1704891145086,-604.42,0.00032876,2]
[311060800,1704891145096,-500.0,0.00032876,2]
[311060801,1704891145105,-597.45,0.00032876,2]
[311060802,1704891145116,-497.85735174,0.00032876,2]
[311060803,1704891145126,-715.45,0.00032876,2]
[311060804,1704891145136,-731.09,0.00032876,2]
[311060805,1704891145146,-500.0,0.00032876,2]
[311060806,1704891145156,-767.17,0.00032876,2]
[311060807,1704891145166,-1110.47,0.00032876,2]
[311060808,1704891145180,-500.0,0.00032876,2]
[311060809,1704891145190,-500.0,0.00032876,2]
[311060810,1704891145200,-500.0,0.00032876,2]
[311060811,1704891145210,-500.0,0.00032876,2]
[311060812,1704891145220,-914.12,0.00032876,2]
[311060813,1704891145231,-500.0,0.00032876,2]
[311060814,1704891145241,-500.0,0.00032876,2]
[311060815,1704891145252,-843.45,0.00032876,2]
[311060816,1704891145262,-540.71,0.00032876,2]
[311060817,1704891145272,-500.0,0.00032876,2]
[311060818,1704891145281,-833.64,0.00032876,2]
[311060819,1704891145291,-500.0,0.00032876,2]
[311060820,1704891145301,-919.36,0.00032876,2]
[311060821,1704891145312,-500.0,0.00032876,2]
[311060822,1704891145322,-500.0,0.00032876,2]
[311060823,1704891145332,-780.81,0.00032876,4]
[311060824,1704891145342,-673.2,0.00032876,2]
[311060825,1704891145351,-549.17,0.00032876,2]
[311060826,1704891145361,-592.78,0.00032876,10]
[311060827,1704891145370,-929.48,0.00032876,2]
[311060828,1704891145380,-500.0,0.00032876,2]
[311060829,1704891145390,-783.37,0.00032876,2]
[311060830,1704891145400,-500.0,0.00032876,2]
[311060831,1704891145411,-526.95,0.00032876,2]
[311060832,1704891145424,-500.0,0.00032876,2]
[311060833,1704891145434,-718.34,0.00032876,2]
[311060834,1704891145444,-796.39,0.00032876,2]
[311060835,1704891145454,-500.0,0.00032876,2]
[311060836,1704891145464,-516.97,0.00032876,2]
[311060837,1704891145474,-603.93,0.00032876,2]
[311060838,1704891145485,-953.36,0.00032876,2]
[311060839,1704891145495,-595.36,0.00032876,2]
[311060840,1704891145623,-999.87,0.00032876,2]
[311060841,1704891145633,-799.61,0.00032876,2]
[311060842,1704891145643,-500.0,0.00032876,2]
[311060843,1704891145653,-679.43,0.00032876,2]
[311060844,1704891145669,-545.66,0.00032876,2]
[311060845,1704891145681,-911.61,0.00032876,2]
[311060846,1704891145691,-608.6,0.00032876,2]
[311060847,1704891145701,-500.0,0.00032876,2]
[311060848,1704891145711,-500.0,0.00032876,2]
[311060849,1704891145722,-528.0,0.00032876,2]
[311060850,1704891145732,-717.61,0.00032876,2]
[311060851,1704891145742,-668.27,0.00032876,2]
[311060852,1704891145752,-500.0,0.00032876,2]
[311060853,1704891145762,-922.19,0.00032876,2]
[311060854,1704891145773,-300.0,0.00032876,2]
[311060855,1704891145783,-500.0,0.00032876,2]
[311060856,1704891145794,-500.0,0.00032876,2]
[311060857,1704891145805,-500.0,0.00032876,2]
[311060858,1704891145814,-1150.48,0.00032876,2]
[311060859,1704891145825,-500.0,0.00032876,2]
[311060860,1704891145834,-500.0,0.00032876,2]
[311060861,1704891145844,-500.0,0.00032876,2]
[311060862,1704891145854,-856.23,0.00032876,2]
[311060863,1704891145863,-500.0,0.00032876,2]
[311060864,1704891145873,-943.83,0.00032876,2]
[311060865,1704891145883,-677.16,0.00032876,2]
[311060866,1704891145894,-500.0,0.00032876,2]
[311060867,1704891145904,-1357.7,0.00032876,2]
[311060868,1704891145914,-819.95,0.00032876,2]
[311060869,1704891145926,-944.54,0.00032876,2]
[311060870,1704891145935,-613.7,0.00032876,2]
[311060871,1704891145946,-845.23,0.00032876,2]
[311060872,1704891145956,-1144.78,0.00032876,2]
[311060873,1704891145965,-500.0,0.00032876,2]
[311060874,1704891145975,-572.57,0.00032876,2]
[311060875,1704891145985,-523.04,0.00032876,2]
[311060876,1704891145995,-981.88,0.00032876,2]
[311060877,1704891146005,-500.0,0.00032876,2]
[311060878,1704891146015,-604.54347783,0.00032876,2]
[311060879,1704891146025,-500.0,0.00032876,2]
[311060880,1704891146035,-500.0,0.00032876,2]
[311060881,1704891146044,-1009.3,0.00032876,2]
[311060882,1704891146054,-500.0,0.00032876,2]
[311060883,1704891146065,-804.49,0.00032876,2]
[311060884,1704891146075,-500.0,0.00032876,2]
[311060885,1704891146085,-626.97,0.00032876,2]
[311060886,1704891146095,-679.35,0.00032876,2]
[311060887,1704891146105,-688.65,0.00032876,2]
[311060888,1704891146115,-1228.41,0.00032876,2]
[311060889,1704891146125,-835.39,0.00032876,2]
[311060890,1704891146135,-500.0,0.00032876,2]
[311060891,1704891146144,-567.03,0.00032876,2]
[311060892,1704891146154,-664.11,0.00032876,2]
[311060893,1704891146164,-699.18,0.00032876,2]
[311060894,1704891146176,-729.83,0.00032876,2]
[311060895,1704891146186,-500.0,0.00032876,2]
[311060896,1704891146196,-574.64,0.00032876,2]
[311060897,1704891146205,-847.62,0.00032876,2]
[311060898,1704891146215,-500.0,0.00032876,2]
[311060899,1704891146225,-1277.67,0.00032876,2]
[311060900,1704891146235,-755.08,0.00032876,2]
[311060901,1704891146244,-1281.13,0.00032876,2]
[311060902,1704891146255,-667.72,0.00032876,2]
[311060903,1704891146264,-1050.74,0.00032876,2]
[311060904,1704891146274,-1129.59,0.00032876,2]
[311060905,1704891146284,-449.09019497,0.00032876,2]
[311060906,1704891146294,-262.57094183,0.00032876,2]
[311060907,1704891146304,-1299.52,0.00032876,2]
[311060908,1704891146313,-500.0,0.00032876,2]
[311060909,1704891146324,-500.0,0.00032876,2]
[311060910,1704891146335,-665.14,0.00032876,2]
[311060911,1704891146346,-1462.15,0.00032876,2]
[311060912,1704891146356,-883.1,0.00032876,2]
[311060913,1704891146366,-736.72,0.00032876,2]
[311060914,1704891146375,-932.0,0.00032876,2]
[311060915,1704891146386,-933.85,0.00032876,2]
[311060916,1704891146396,-715.55,0.00032876,2]
[311060917,1704891146405,-500.0,0.00032876,2]
[311060918,1704891146416,-500.0,0.00032876,2]
[311060919,1704891146430,-616.84,0.00032876,2]
[311060920,1704891146441,-1106.31,0.00032876,2]
[311060921,1704891146451,-989.02,0.00032876,2]
[311060922,1704891146461,-500.0,0.00032876,2]
[311060923,1704891146472,-500.0,0.00032876,2]
[311060924,1704891146481,-1108.12,0.00032876,2]
[311060925,1704891146491,-1195.8,0.00032876,2]
[311060926,1704891146501,-1806.82,0.00032876,2]
[311060927,1704891146511,-778.7,0.00032876,2]
[311060928,1704891146521,-778.7,0.00032876,2]
[311060929,1704891146530,-915.35,0.00032876,2]
[311060930,1704891146540,-778.7,0.00032876,2]
[311060931,1704891146550,-778.7,0.00032876,2]
[311060932,1704891146560,-1387.71,0.00032876,2]
[311060933,1704891146569,-778.7,0.00032876,2]
[311060934,1704891146579,-778.7,0.00032876,2]
[311060935,1704891146588,-778.7,0.00032876,2]
[311060936,1704891146598,-778.7,0.00032876,2]
[311060937,1704891146608,-778.7,0.00032876,2]
[311060938,1704891146617,-778.7,0.00032876,2]
[311060939,1704891146628,-778.7,0.00032876,2]
[311060940,1704891146640,-1503.57,0.00032876,2]
[311060941,1704891146651,-556.89,0.00032876,2]
[311060942,1704891146663,-1262.12,0.00032876,2]
[311060943,1704891146676,-728.24,0.00032876,2]
[311060944,1704891146686,-749.59,0.00032876,2]
[311060945,1704891146696,-500.0,0.00032876,2]
[311060946,1704891146707,-500.0,0.00032876,2]
[311060947,1704891146717,-968.99,0.00032876,2]
[311060948,1704891146727,-1148.53,0.00032876,2]
[311060949,1704891146738,-500.0,0.00032876,2]
[311060950,1704891146748,-1486.97,0.00032876,2]
[311060951,1704891146758,-1273.18,0.00032876,2]
[311060952,1704891146769,-500.0,0.00032876,2]
[311060953,1704891146779,-500.0,0.00032876,2]
[311060954,1704891146790,-1334.19,0.00032876,2]
[311060955,1704891146801,-810.04,0.00032876,2]
[311060956,1704891146812,-884.9,0.00032876,2]
[311060957,1704891146826,-945.46,0.00032876,2]
[311060958,1704891146837,-500.0,0.00032876,2]
[311060959,1704891146848,-566.84,0.00032876,2]
[311060960,1704891146858,-500.0,0.00032876,2]
[311060961,1704891146868,-500.0,0.00032876,2]
[311060962,1704891146882,-659.65,0.00032876,2]
[311060963,1704891146892,-1698.48,0.00032876,2]
[311060964,1704891146902,-1658.69,0.00032876,2]
[311060965,1704891146912,-1894.62,0.00032876,2]
[311060966,1704891146924,-530.43,0.00032876,2]
[311060967,1704891146935,-648.28,0.00032876,2]
[311060968,1704891146945,-635.25,0.00032876,2]
[311060969,1704891146956,-716.26,0.00032876,2]
[311060970,1704891146965,-500.0,0.00032876,2]
[311060971,1704891146975,-659.2,0.00032876,2]
[311060972,1704891146985,-1075.0,0.00032876,2]
[311060973,1704891146995,-912.69,0.00032876,2]
[311060974,1704891147005,-500.0,0.00032876,2]
[311060975,1704891147015,-994.89,0.00032876,2]
[311060976,1704891147025,-536.25,0.00032876,2]
[311060977,1704891147035,-535.04,0.00032876,2]
[311060978,1704891147045,-500.0,0.00032876,2]
[311060979,1704891147055,-763.92,0.00032876,2]
[311060980,1704891147064,-1507.5,0.00032876,2]
[311060981,1704891147074,-1352.86,0.00032876,2]
[311060982,1704891147084,-500.0,0.00032876,2]
[311060983,1704891147094,-763.85,0.00032876,2]
[311060984,1704891147104,-500.0,0.00032876,2]
[311060985,1704891147114,-1058.85,0.00032876,2]
[311060986,1704891147124,-592.06,0.00032876,2]
[311060987,1704891147134,-1144.7,0.00032876,2]
[311060988,1704891147144,-500.0,0.00032876,2]
[311060989,1704891147155,-982.41,0.00032876,2]
[311060990,1704891147165,-500.0,0.00032876,2]
[311060991,1704891147178,-500.0,0.00032876,2]
[311060992,1704891147188,-500.0,0.00032876,2]
[311060993,1704891147198,-960.45,0.00032876,2]
[311060994,1704891147208,-1268.39,0.00032876,2]
[311060995,1704891147218,-1187.57,0.00032876,2]
[311060996,1704891147228,-1176.82,0.00032876,2]
[311060997,1704891147238,-500.0,0.00032876,2]
[311060998,1704891147248,-1591.28,0.00032876,2]
[311060999,1704891147257,-982.23,0.00032876,2]
[311061000,1704891147266,-960.81,0.00032876,2]
[311061001,1704891147276,-500.0,0.00032876,2]
[311061002,1704891147286,-1435.01,0.00032876,2]
[311061003,1704891147296,-1207.08,0.00032876,2]
[311061004,1704891147306,-771.19,0.00032876,2]
[311061005,1704891147315,-1012.64,0.00032876,2]
[311061006,1704891147325,-1395.58,0.00032876,2]
[311061007,1704891147335,-1128.18,0.00032876,2]
[311061008,1704891147345,-1055.12,0.00032876,2]
[311061009,1704891147355,-524.56,0.00032876,2]
[311061010,1704891147364,-500.0,0.00032876,2]
[311061011,1704891147373,-620.01,0.00032876,2]
[311061012,1704891147383,-1511.92,0.00032876,2]
[311061013,1704891147392,-835.1,0.00032876,2]
[311061014,1704891147402,-1179.08,0.00032876,2]
[311061015,1704891147412,-1185.27,0.00032876,2]
[311061016,1704891147424,-1387.63,0.00032876,2]
[311061017,1704891147433,-500.0,0.00032876,2]
[311061018,1704891147443,-904.42,0.00032876,2]
[311061019,1704891147454,-1196.53,0.00032876,2]
[311061020,1704891147465,-525.95,0.00032876,2]
[311061021,1704891147475,-1787.03,0.00032876,2]
[311061022,1704891147485,-674.1,0.00032876,2]
[311061023,1704891147495,-1077.63,0.00032876,2]
[311061024,1704891147505,-755.38,0.00032876,2]
[311061025,1704891147514,-500.0,0.00032876,2]
[311061026,1704891147850,-581.62,0.00032876,2]
[311061027,1704891147862,-1024.85,0.00032876,2]
[311061028,1704891147871,-1257.2,0.00032876,2]
[311061029,1704891147881,-500.0,0.00032876,2]
[311061030,1704891147891,-836.69,0.00032876,2]
[311061031,1704891147901,-525.09,0.00032876,2]
[311061032,1704891147911,-500.0,0.00032876,2]
[311061033,1704891147924,-782.38,0.00032876,2]
[311061034,1704891147933,-1749.35,0.00032876,2]
[311061035,1704891147943,-1000.33,0.00032876,2]
[311061036,1704891147954,-604.42,0.00032876,2]
[311061037,1704891147964,-500.0,0.00032876,2]
[311061038,1704891147974,-500.0,0.00032876,2]
[311061039,1704891147984,-765.38,0.00032876,2]
[311061040,1704891147995,-878.75,0.00032876,2]
[311061041,1704891148005,-679.72,0.00032876,2]
[311061042,1704891148015,-1881.36,0.00032876,2]
[311061043,1704891148025,-288.18901564,0.00032876,2]
[311061044,1704891148034,-631.79,0.00032876,2]
[311061045,1704891148044,-500.0,0.00032876,7]
[311061046,1704891148054,-500.0,0.00032876,2]
[311061047,1704891148064,-500.0,0.00032876,2]
[311061048,1704891148073,-1166.65,0.00032876,2]
[311061049,1704891148083,-756.6,0.00032876,2]
[311061050,1704891148093,-2844.34,0.00032876,2]
[311061051,1704891148102,-641.96,0.00032876,2]
[311061052,1704891148111,-1044.01,0.00032876,2]
[311061053,1704891148121,-500.0,0.00032876,2]
[311061054,1704891148131,-500.0,0.00032876,2]
[311061055,1704891148141,-500.0,0.00032876,2]
[311061056,1704891148151,-1332.76,0.00032876,2]
[311061057,1704891148161,-1244.23,0.00032876,2]
[311061058,1704891148170,-729.63,0.00032876,2]
[311061059,1704891148181,-500.0,0.00032876,2]
[311061060,1704891148191,-757.76,0.00032876,2]
[311061061,1704891148201,-500.0,0.00032876,2]
[311061062,1704891148211,-500.0,0.00032876,2]
[311061063,1704891148220,-500.0,0.00032876,2]
[311061064,1704891148230,-1127.84,0.00032876,2]
[311061065,1704891148239,-1154.12,0.00032876,2]
[311061066,1704891148249,-1044.13,0.00032876,2]
[311061067,1704891148259,-500.0,0.00032876,2]
[311061068,1704891148269,-551.43,0.00032876,2]
[311061069,1704891148279,-1354.13,0.00032876,2]
[311061070,1704891148289,-500.0,0.00032876,2]
[311061071,1704891148299,-638.51,0.00032876,2]
[311061072,1704891148310,-862.28,0.00032876,2]
[311061073,1704891148320,-1181.63,0.00032876,2]
[311061074,1704891148330,-757.94,0.00032876,2]
[311061075,1704891148343,-1015.59,0.00032876,2]
[311061076,1704891148354,-848.07,0.00032876,2]
[311061077,1704891148363,-823.4,0.00032876,2]
[311061078,1704891148374,-783.14,0.00032876,2]
[311061079,1704891148384,-500.0,0.00032876,2]
[311061080,1704891148393,-1634.17,0.00032876,2]
[311061081,1704891148403,-892.34,0.00032876,2]
[311061082,1704891148414,-500.0,0.00032876,2]
[311061083,1704891148426,-500.0,0.00032876,2]
[311061084,1704891148435,-500.0,0.00032876,2]
[311061085,1704891148445,-1731.94,0.00032876,2]
[311061086,1704891148455,-1300.74,0.00032876,2]
[311061087,1704891148464,-1118.35,0.00032876,2]
[311061088,1704891148474,-821.71,0.00032876,2]
[311061089,1704891148483,-1097.53,0.00032876,2]
[311061090,1704891148493,-1115.5,0.00032876,2]
[311061091,1704891148503,-799.47,0.00032876,2]
[311061092,1704891148514,-500.0,0.00032876,2]
[311061093,1704891148523,-500.0,0.00032876,2]
[311061094,1704891148533,-500.0,0.00032876,2]
[311061095,1704891148543,-1438.57,0.00032876,2]
[311061096,1704891148553,-1466.84,0.00032876,2]
[311061097,1704891148563,-652.51,0.00032876,2]
[311061098,1704891148572,-500.0,0.00032876,2]
[311061099,1704891148582,-1106.08,0.00032876,2]
[311061100,1704891148591,-1804.0,0.00032876,2]
[311061101,1704891148601,-1166.35,0.00032876,2]
[311061102,1704891148611,-500.0,0.00032876,2]
[311061103,1704891148620,-1134.06,0.00032876,2]
[311061104,1704891148631,-1196.42,0.00032876,2]
[311061105,1704891148641,-545.73,0.00032876,2]
[311061106,1704891148651,-848.12,0.00032876,2]
[311061107,1704891148661,-1566.38,0.00032876,2]
[311061108,1704891148670,-316.57504511,0.00032876,2]
[311061109,1704891148683,-714.75,0.00032876,2]
[311061110,1704891148692,-907.54,0.00032876,2]
[311061111,1704891148702,-556.57,0.00032876,2]
[311061112,1704891148712,-924.42,0.00032876,2]
[311061113,1704891148722,-500.0,0.00032876,2]
[311061114,1704891148732,-2743.08,0.00032876,2]
[311061115,1704891148742,-500.0,0.00032876,2]
[311061116,1704891148753,-500.0,0.00032876,2]
[311061117,1704891148763,-500.0,0.00032876,2]
[311061118,1704891148773,-1841.24,0.00032876,2]
[311061119,1704891148784,-1407.91,0.00032876,2]
[311061120,1704891148794,-627.59,0.00032876,2]
[311061121,1704891148804,-1648.35,0.00032876,2]
[311061122,1704891148813,-546.87,0.00032876,2]
[311061123,1704891148823,-574.07,0.00032876,2]
[311061124,1704891148832,-1615.48,0.00032876,2]
[311061125,1704891148842,-555.68,0.00032876,2]
[311061126,1704891148852,-997.75,0.00032876,2]
[311061127,1704891148862,-1687.92,0.00032876,2]
[311061128,1704891148873,-783.23,0.00032876,2]
[311061129,1704891148883,-1436.16,0.00032876,2]
[311061130,1704891148894,-500.0,0.00032876,2]
[311061131,1704891148904,-893.83,0.00032876,2]
[311061132,1704891148914,-608.29,0.00032876,2]
[311061133,1704891148926,-1132.03,0.00032876,2]
[311061134,1704891148937,-1380.57,0.00032876,2]
[311061135,1704891148947,-933.87,0.00032876,2]
[311061136,1704891148957,-500.0,0.00032876,2]
[311061137,1704891148967,-500.0,0.00032876,2]
[311061138,1704891148977,-957.42,0.00032876,2]
[311061139,1704891148988,-995.9,0.00032876,2]
[311061140,1704891148998,-500.0,0.00032876,2]
[311061141,1704891149009,-895.94,0.00032876,2]
[311061142,1704891149019,-1856.22,0.00032876,2]
[311061143,1704891149028,-1480.74,0.00032876,2]
[311061144,1704891149039,-500.0,0.00032876,2]
[311061145,1704891149049,-776.38,0.00032876,2]
[311061146,1704891149059,-1298.12,0.00032876,2]
[311061147,1704891149070,-333.27,0.00032876,2]
[311061148,1704891149079,-1188.98,0.00032876,2]
[311061149,1704891149090,-791.87,0.00032876,2]
[311061150,1704891149100,-500.0,0.00032876,2]
[311061151,1704891149111,-577.69,0.00032876,2]
[311061152,1704891149121,-700.71,0.00032876,2]
[311061153,1704891149130,-682.9,0.00032876,2]
[311061154,1704891149140,-923.76,0.00032876,2]
[311061155,1704891149149,-1290.28,0.00032876,2]
[311061156,1704891149159,-694.02,0.00032876,2]
[311061157,1704891149168,-500.0,0.00032876,2]
[311061158,1704891149180,-672.12,0.00032876,2]
[311061159,1704891149191,-751.24,0.00032876,2]
[311061160,1704891149200,-1037.2,0.00032876,2]
[311061161,1704891149210,-791.74,0.00032876,2]
[311061162,1704891149221,-2135.41,0.00032876,2]
[311061163,1704891149231,-630.74,0.00032876,2]
[311061164,1704891149242,-500.0,0.00032876,2]
[311061165,1704891149251,-500.0,0.00032876,2]
[311061166,1704891149261,-1065.89,0.00032876,2]
[311061167,1704891149272,-1611.31,0.00032876,2]
[311061168,1704891149282,-537.76,0.00032876,2]
[311061169,1704891149291,-376.17728238,0.00032876,2]
[311061170,1704891149302,-500.0,0.00032876,2]
[311061171,1704891149312,-500.0,0.00032876,2]
[311061172,1704891149324,-1096.88,0.00032876,2]
[311061173,1704891149334,-500.0,0.00032876,2]
[311061174,1704891149345,-1235.12,0.00032876,2]
[311061175,1704891149355,-500.0,0.00032876,2]
[311061176,1704891149365,-508.12,0.00032876,2]
[311061177,1704891149375,-1351.54,0.00032876,2]
[311061178,1704891149385,-1332.96,0.00032876,2]
[311061179,1704891149395,-500.0,0.00032876,2]
[311061180,1704891149405,-500.0,0.00032876,2]
[311061181,1704891149415,-525.51,0.00032876,2]
[311061182,1704891149426,-500.0,0.00032876,2]
[311061183,1704891149436,-500.0,0.00032876,2]
[311061184,1704891149445,-500.0,0.00032876,2]
[311061185,1704891149455,-2153.22,0.00032876,2]
[311061186,1704891149465,-894.32,0.00032876,2]
[311061187,1704891149476,-1551.48,0.00032876,2]
[311061188,1704891149488,-551.86,0.00032876,2]
[311061189,1704891149499,-1823.35,0.00032876,2]
[311061190,1704891149510,-656.22,0.00032876,2]
[311061191,1704891149521,-903.93,0.00032876,2]
[311061192,1704891149531,-784.54,0.00032876,2]
[311061193,1704891149541,-500.0,0.00032876,2]
[311061194,1704891149552,-1466.91,0.00032876,2]
[311061195,1704891149570,-1006.56,0.00032876,2]
[311061196,1704891149584,-1655.17,0.00032876,2]
[311061197,1704891149594,-3133.81,0.00032876,2]
[311061198,1704891149605,-761.32,0.00032876,2]
[311061199,1704891149614,-500.0,0.00032876,2]
[311061200,1704891149625,-500.0,0.00032876,2]
[311061201,1704891149636,-234.31947685,0.00032876,2]
[311061202,1704891149647,-1170.77,0.00032876,2]
[311061203,1704891149658,-533.08,0.00032876,2]
[311061204,1704891149668,-210.78247298,0.00032876,2]
[311061205,1704891149681,-500.0,0.00032876,2]
[311061206,1704891149691,-1368.59,0.00032876,2]
[311061207,1704891149702,-661.49,0.00032876,2]
[311061208,1704891149712,-1618.49,0.00032876,2]
[311061209,1704891149723,-8919.11,0.00032876,2]
[311061210,1704891149733,-696.22,0.00032876,2]
[311061211,1704891149742,-500.0,0.00032876,2]
[311061212,1704891149753,-1000.0,0.00032876,2]
[311061213,1704891149763,-813.18,0.00032876,2]
[311061214,1704891149773,-500.0,0.00032876,2]
[311061215,1704891149783,-484.51,0.00032876,2]
[311061216,1704891149793,-916.52,0.00032876,2]
[311061217,1704891149803,-500.0,0.00032876,2]
[311061218,1704891149813,-500.0,0.00032876,2]
[311061219,1704891149823,-1010.96,0.00032876,2]
[311061220,1704891149833,-500.0,0.00032876,2]
[311061221,1704891149843,-669.44,0.00032876,2]
[311061222,1704891149853,-1654.81,0.00032876,2]
[311061223,1704891149863,-895.64,0.00032876,2]
[311061224,1704891149873,-5719.09,0.00032876,2]
[311061225,1704891149883,-500.0,0.00032876,2]
[311061226,1704891149893,-3241.68,0.00032876,2]
[311061227,1704891149903,-2147.06,0.00032876,2]
[311061228,1704891149913,-500.0,0.00032876,2]
[311061229,1704891149926,-4583.07,0.00032876,2]
[311061230,1704891149938,-4104.47,0.00032876,2]
[311061231,1704891149949,-500.0,0.00032876,2]
[311061232,1704891149960,-1135.8,0.00032876,2]
[311061233,1704891149970,-4864.49,0.00032876,2]
[311061234,1704891149981,-1172.6,0.00032876,2]
[311061235,1704891149993,-1306.53,0.00032876,2]
[311061236,1704891150004,-500.0,0.00032876,2]
[311061237,1704891150016,-605.42,0.00032876,2]
[311061238,1704891150027,-500.0,0.00032876,2]
[311061239,1704891150038,-613.66,0.00032876,2]
[311061240,1704891150049,-3152.91,0.00032876,2]
[311061241,1704891150059,-1839.88,0.00032876,2]
[311061242,1704891150070,-848.46,0.00032876,2]
[311061243,1704891150081,-1217.95,0.00032876,2]
[311061244,1704891150092,-3087.19,0.00032876,2]
[311061245,1704891150103,-1107.32,0.00032876,2]
[311061246,1704891150114,-1973.9,0.00032876,2]
[311061247,1704891150124,-1243.05,0.00032876,2]
[311061248,1704891150135,-500.0,0.00032876,2]
[311061249,1704891150145,-500.0,0.00032876,2]
[311061250,1704891150156,-998.38,0.00032876,2]
[311061251,1704891150166,-1702.03,0.00032876,2]
[311061252,1704891150186,-515.72,0.00032876,2]
[311061253,1704891150197,-500.0,0.00032876,2]
[311061254,1704891150207,-3061.74,0.00032876,2]
[311061255,1704891150218,-500.0,0.00032876,2]
[311061256,1704891150228,-3064.76,0.00032876,2]
[311061257,1704891150239,-996.01,0.00032876,2]
[311061258,1704891150250,-1068.18,0.00032876,2]
[311061259,1704891150261,-1153.97,0.00032876,2]
[311061260,1704891150271,-6469.31,0.00032876,2]
[311061261,1704891150282,-500.0,0.00032876,2]
[311061262,1704891150293,-1516.45,0.00032876,2]
[311061263,1704891150303,-20572.41,0.00032876,2]
[311061264,1704891150314,-835.36,0.00032876,2]
[311061265,1704891150327,-508.77,0.00032876,2]
[311061266,1704891150338,-876.85,0.00032876,2]
[311061267,1704891150349,-1211.96,0.00032876,2]
[311061268,1704891150360,-8935.6,0.00032876,2]
[311061269,1704891150529,-500.0,0.00032876,2]
[311061270,1704891150539,-749.11,0.00032876,2]
[311061271,1704891150549,-500.0,0.00032876,2]
[311061272,1704891150559,-500.0,0.00032876,2]
[311061273,1704891150569,-500.0,0.00032876,2]
[311061274,1704891150579,-3428.01,0.00032876,2]
[311061275,1704891150589,-51777.21,0.00032876,2]
[311061276,1704891150599,-1411.74,0.00032876,2]
[311061277,1704891150609,-500.0,0.00032876,2]
[311061278,1704891150619,-2414.62,0.00032876,2]
[311061279,1704891150634,-28702.52,0.00032876,2]
[311061280,1704891150643,-1449.33,0.00032876,2]
[311061281,1704891150653,-729.81,0.00032876,2]
[311061282,1704891150662,-1741.33,0.00032876,2]
[311061283,1704891150672,-500.0,0.00032876,2]
[311061284,1704891150684,-269.0,0.00032876,2]
[311061285,1704891150694,-18242.51,0.00032876,2]
[311061286,1704891150704,-982.47,0.00032876,2]
[311061287,1704891150713,-3044.12,0.00032876,2]
[311061288,1704891150726,-1198.42,0.00032876,2]